Cogmind - Beta 16.1 @@@ ROGUE MODE // 2026.04.04 @ 13:56:22 Player: C0-2MO Result: Escaped! Performance ------------- Evolutions (9) 4500 Regions Visited (32) 6400 Robots Destroyed (162) 810 Value Destroyed (7325) 7325 Prototype IDs (41) 820 Alien Tech Used (3) 600 Bonus (14875) 14875 TOTAL SCORE: 35330 Bonus ------- Triggered Max Security 1000 High Alert Combat Kills 373 Follower Combat Kills 1671 Entered Garrisons 1400 Used RIF Installer 3500 Entered DSFs 500 Network Hubs Disabled 400 Aligned with FarCom 300 Built Enhanced Grunts 300 Met R17 at Cetus 500 Met Sigix 2000 Win 3000 Friendly Fire -69 Cogmind --------- Core Integrity 1600/1600 Matter 290/300 Energy 160/210 System Corruption 0% Temperature Cool (-184) Movement Flying (15) Location To Epsilon Eridani Parts ------- > --- POWER (3) -------- Light Nuclear Core Micro Antimatter Reactor Matter Drive > --- PROPULSION (10) -- VTOL Module VTOL Module Nuclear Pulse Thruster Cooled Nuclear Pulse Thruster Cooled Nuclear Pulse Thruster Impulse Thruster Field Propulsion Array Improved Diametric Drive > --- UTILITY (9) ------ Advanced Cryofiber Web Experimental Heat Sink Advanced Hacking Suite Experimental Hacking Suite Experimental System Shield Relay Coupler [NC] (32) Relay Coupler [Grunt] (33) > --- WEAPON (3) ------- Latent Energy Streamer Sigix Broadsword > --- INVENTORY (5) ---- Improved Fusion Compressor Advanced Reaction Control System Subatomic Replicator Advanced Datajack Peak State ------------ > --- POWER ------------ Light Nuclear Core Micro Antimatter Reactor Matter Drive > --- PROPULSION ------- VTOL Module VTOL Module Nuclear Pulse Thruster Cooled Nuclear Pulse Thruster Cooled Nuclear Pulse Thruster Impulse Thruster Field Propulsion Array Improved Diametric Drive > --- UTILITY ---------- Advanced Cryofiber Web Experimental Heat Sink Advanced Hacking Suite Experimental Hacking Suite Experimental System Shield Relay Coupler [NC] Relay Coupler [Grunt] > --- WEAPON ----------- Latent Energy Streamer Sigix Broadsword > --- INVENTORY -------- Improved Fusion Compressor Advanced Reaction Control System Subatomic Replicator Advanced Datajack [Rating: 159] Favorites ----------- Power Light Ion Engine Engine Light Ion Engine Power Core Light Fission Core Reactor Matter Drive Propulsion Improved Flight Unit Treads Light Treads Flight Unit Improved Flight Unit Utility Improved Hacking Suite Device Experimental Heat Sink Processor Improved Targeting Computer Hackware Improved Hacking Suite Protection Hardened Light Armor Plating Weapon Hypervelocity Coil Gun Energy Cannon Latent Energy Streamer Ballistic Gun Hypervelocity Coil Gun Special Weapon Remote Datajack Slashing Weapon Ripper Special Melee Weapon Datajack Build | -11 -10 -10 -9 -9 -9 -8 -8 -8 -8 -8 -7 -7 -7 -7 -6 -6 -6 -6 -5 -5 -5 -5 -4 -4 -4 -4 -4 -3 -3 -2 -2 -1 ------- Run | Yrd Mat Min Mat Min Exi Min Mat Gar Mat Gar Fac Gar Fac DSF Fac Was Fac Gar Fac Gar Fac Gar Fac Ext Cet Arc Hub Res Qua Res Gar Acc Slots Evolved 18 | . . . 2 . . . 2 . . . 2 . . . 2 . . . 2 . . . 2 . . . . 2 . 2 . 2 Power 2 | . . . . . . . . . . . . . . . 1 . . . . . . . . . . . . . . 1 . . Propulsion 8 | . . . 1 . . . 1 . . . 1 . . . 1 . . . 1 . . . 1 . . . . 2 . . . . Utility 7 | . . . . . . . 1 . . . 1 . . . . . . . 1 . . . 1 . . . . . . 1 . 2 Weapon 1 | . . . 1 . . . . . . . . . . . . . . . . . . . . . . . . . . . . . Parts Attached 176 | 4 19 6 10 6 1 . 6 17 9 3 3 12 . 5 23 1 11 2 2 . . 1 7 4 1 3 7 3 3 4 2 1 Power 25 | . . . 3 . . . 1 3 1 . 1 . . . 4 . 2 . 1 . . . 2 2 . . 2 1 1 1 . . Engine 9 | . . . 3 . . . . 1 . . . . . . 1 . 1 . . . . . 2 . . . 1 . . . . . Core 13 | . . . . . . . 1 2 1 . 1 . . . 3 . 1 . 1 . . . . 1 . . 1 1 . . . . Reactor 3 | . . . . . . . . . . . . . . . . . . . . . . . . 1 . . . . 1 1 . . Propulsion 54 | 2 6 3 3 . . . 1 3 1 2 . 6 . 5 5 . 5 . . . . 1 2 1 . . 4 1 . 2 . 1 Treads 2 | 2 . . . . . . . . . . . . . . . . . . . . . . . . . . . . . . . . Leg . | . . . . . . . . . . . . . . . . . . . . . . . . . . . . . . . . . Wheel . | . . . . . . . . . . . . . . . . . . . . . . . . . . . . . . . . . Hover . | . . . . . . . . . . . . . . . . . . . . . . . . . . . . . . . . . Flight 52 | . 6 3 3 . . . 1 3 1 2 . 6 . 5 5 . 5 . . . . 1 2 1 . . 4 1 . 2 . 1 Utility 55 | . 6 1 . 4 . . 1 5 4 1 2 4 . . 8 1 3 1 1 . . . 3 1 1 3 1 1 . 1 2 . Device 16 | . 1 . . 2 . . . 1 2 . . . . . 4 . . . 1 . . . 2 . . 2 . 1 . . . . Storage . | . . . . . . . . . . . . . . . . . . . . . . . . . . . . . . . . . Processor 6 | . 2 . . 1 . . 1 . . . . . . . 1 1 . . . . . . . . . . . . . . . . Hackware 18 | . . . . . . . . 2 1 1 . 3 . . 1 . 3 1 . . . . 1 . . 1 1 . . 1 2 . Protection 15 | . 3 1 . 1 . . . 2 1 . 2 1 . . 2 . . . . . . . . 1 1 . . . . . . . Artifact . | . . . . . . . . . . . . . . . . . . . . . . . . . . . . . . . . . Weapon 42 | 2 7 2 4 2 1 . 3 6 3 . . 2 . . 6 . 1 1 . . . . . . . . . . 2 . . . Energy Gun . | . . . . . . . . . . . . . . . . . . . . . . . . . . . . . . . . . Energy Cannon 2 | . . . . . 1 . . . . . . . . . . . . . . . . . . . . . . . 1 . . . Ballistic Gun 35 | 2 6 2 3 2 . . 3 5 3 . . 2 . . 6 . 1 . . . . . . . . . . . . . . . Ballistic Cannon . | . . . . . . . . . . . . . . . . . . . . . . . . . . . . . . . . . Launcher . | . . . . . . . . . . . . . . . . . . . . . . . . . . . . . . . . . Special Weapon 1 | . . . . . . . . . . . . . . . . . . 1 . . . . . . . . . . . . . . Impact Weapon . | . . . . . . . . . . . . . . . . . . . . . . . . . . . . . . . . . Slashing Weapon 2 | . . . 1 . . . . . . . . . . . . . . . . . . . . . . . . . 1 . . . Piercing Weapon . | . . . . . . . . . . . . . . . . . . . . . . . . . . . . . . . . . Special Melee Weapon 2 | . 1 . . . . . . 1 . . . . . . . . . . . . . . . . . . . . . . . . Unidentified Prototypes 13 | . . . 2 1 . . . . . . . . . . . 1 1 . . . . . . . 1 . 1 . 3 2 . 1 Parts Lost 49 | . . 1 1 . . . . 7 1 1 1 18 . 2 1 . . . . . . 1 4 2 2 . 6 . . 1 . . Power 4 | . . . . . . . . 1 . . . 1 . . . . . . . . . 1 1 . . . . . . . . . Propulsion 21 | . . 1 . . . . . 1 . 1 . 6 . 2 1 . . . . . . . 2 2 1 . 3 . . 1 . . Utility 11 | . . . . . . . . 1 1 . 1 6 . . . . . . . . . . 1 . 1 . . . . . . . Weapon 13 | . . . 1 . . . . 4 . . . 5 . . . . . . . . . . . . . . 3 . . . . . Highest Loss Streak 8 | . . 1 1 . . . . 4 1 1 1 8 . 2 1 . . . . . . 1 3 1 1 . 4 . . 1 . . To Critical Strikes . | . . . . . . . . . . . . . . . . . . . . . . . . . . . . . . . . . Average Backups 4 | 1 4 4 4 5 5 5 4 4 5 5 5 4 5 4 4 5 5 5 4 4 4 4 5 5 5 5 5 4 4 4 4 4 Power . | . . . . . . . . 1 . . . . . . . . . . . 1 1 1 1 1 1 1 1 1 1 1 1 1 Propulsion . | . . . . 1 1 1 . . . . . . . . . 1 1 1 . . . . 1 . . . . . . . . . Utility 1 | . 1 1 2 2 1 1 1 1 2 2 2 2 2 2 2 2 1 1 . . . . . . 1 1 1 1 1 1 1 1 Weapon 1 | . 1 2 1 1 1 2 2 1 1 2 2 2 3 2 2 2 2 2 3 3 3 3 2 2 2 2 1 1 . . . . Tool/Special . | . . . . . . . . . . . . . . . . . . . . . . . . . . . . . . . . . Unused Backups 8 | . 2 2 1 . . . 1 . . . . . . . . . . . . . . . . . . . . . . . . 2 Power 1 | . 1 . . . . . . . . . . . . . . . . . . . . . . . . . . . . . . . Propulsion . | . . . . . . . . . . . . . . . . . . . . . . . . . . . . . . . . . Utility . | . . . . . . . . . . . . . . . . . . . . . . . . . . . . . . . . . Weapon 4 | . . 2 1 . . . 1 . . . . . . . . . . . . . . . . . . . . . . . . . Tool/Special 3 | . 1 . . . . . . . . . . . . . . . . . . . . . . . . . . . . . . 2 Average Slot Usage (%) 87 | . 80 79 94 96 98 100 99 91 97 99 82 81 . 14 68 90 99 100 98 100 100 100 84 90 84 83 87 70 75 73 82 76 Engine 3 | . . . 9 11 11 11 5 1 2 . . . . . 2 6 6 6 5 5 5 5 2 5 5 5 3 . . . . . Core 4 | . . . . . . . 3 7 6 9 7 5 . . 6 6 6 6 5 5 5 5 2 5 5 5 6 9 6 4 4 4 Flight 31 | . 23 25 31 33 33 33 36 33 36 35 30 30 . 8 33 40 40 40 41 41 41 41 38 32 27 26 30 27 28 26 30 28 Device 2 | . . . . . . . . . . . . . . . 6 . . . 3 5 5 5 6 6 5 5 5 4 7 8 8 8 Processor 6 | . 11 14 11 7 11 11 17 16 9 9 7 1 . . 2 10 5 . . . . . . . . . . . . . . . Hackware 10 | . . . . . . . . . 7 9 7 14 . . 1 6 19 26 23 23 23 23 17 21 21 24 26 23 20 19 21 20 Protection 5 | . 10 10 11 10 11 11 9 8 7 9 5 8 . . 3 . . . . . . . . 3 4 . . . . . . . Ballistic Gun 15 | . 26 28 28 30 31 33 25 14 21 16 17 14 . . 4 20 14 4 . . . . 10 12 13 10 10 . . . . . Slashing Weapon 3 | . . . . 2 . . 1 5 3 7 5 3 . 6 5 . 4 4 5 5 5 5 3 1 . 4 3 4 3 4 4 4 Peak Build Rating 159 | 4 9 9 23 30 28 21 34 34 27 29 34 38 2 21 48 53 67 67 75 75 75 75 86 91 87 77 94 82 126 154 154 159 Average Rating 45 | 3 7 7 18 20 20 21 30 26 24 27 29 31 2 8 31 50 58 66 74 75 75 74 75 82 82 76 86 81 109 137 151 150 On Entrance 51 | . 4 8 9 20 20 21 21 34 21 27 29 34 2 2 15 45 53 67 66 75 75 75 72 86 82 82 77 77 82 126 154 150 Avg Prop Armor Cover (%) 13 | 28 28 . . . . . . . . . . . . 11 16 . . . . . . . 7 . . 12 . . . . . . Naked Turns 22 | . . . . . . . . . . . . 1 12 9 . . . . . . . . . . . . . . . . . . Heaviest Build 49 | 3 8 8 15 24 15 15 20 22 17 17 18 19 . 3 28 26 34 34 28 28 28 28 26 35 35 28 27 15 41 49 49 49 Greatest Support 56 | 3 8 8 15 15 15 15 20 20 20 20 18 22 3 25 27 27 36 36 40 40 40 40 47 44 38 31 47 41 41 49 49 56 Greatest Overweight (x) 8 | . . 1 1 1 . . . 1 . 1 . 1 . . 1 . . . . . . . . . 1 8 . . . . . . Average Overweight (x) . | . . . . . . . . . . . . . . . . . . . . . . . . . . 3 . . . . . . Largest Inventory Capacity 5 | 5 5 5 5 5 5 5 5 5 5 5 5 5 5 5 5 5 5 5 5 5 5 5 5 5 5 5 5 5 5 5 5 5 Average Capacity 5 | 5 5 5 5 5 5 5 5 5 5 5 5 5 5 5 5 5 5 5 5 5 5 5 5 5 5 5 5 5 5 5 5 5 Most Carried 5 | 2 5 5 5 5 5 5 5 5 5 5 5 5 5 5 5 5 5 5 4 4 4 5 5 5 5 5 5 5 5 5 4 4 Average Carried 4 | 1 4 4 4 5 5 5 4 4 4 5 5 4 5 4 4 5 4 5 3 4 4 4 5 4 5 4 4 4 4 4 4 4 Final Capacity 5 | 5 5 5 5 5 5 5 5 5 5 5 5 5 5 5 5 5 5 5 5 5 5 5 5 5 5 5 5 5 5 5 5 5 Final Carried 5 | 2 5 5 5 5 5 5 5 5 5 5 5 5 5 5 5 5 5 5 4 4 4 5 5 5 5 5 5 5 5 4 4 4 Class Distribution -------------------- 25% | Hacker-Sprinter 17% | Sprinter 17% | Mutant 11% | Scavenger-Sprinter 6% | Scavenger-Tank 5% | Scavenger-Mutant 4% | Hacker-Mutant Dominant Class ---------------- Mutant | -10/Materials Mutant | -10/Mines Scavenger-Tank | -9/Materials Gunner | -9/Mines Gunner | -9/Exiles Skirmisher | -8/Mines Sprinter | -8/Materials Scavenger-Sprinter | -8/Garrison Sprinter | -8/Materials Sprinter | -8/Garrison Sprinter | -7/Factory Scavenger-Sprinter | -7/Garrison Mutant | -7/Factory Mutant | -7/DSF Scavenger-Sprinter | -6/Factory Scavenger-Sprinter | -6/Waste Hacker-Sprinter | -6/Factory Hacker-Sprinter | -6/Garrison Hacker-Sprinter | -5/Factory Hacker-Sprinter | -5/Garrison Hacker-Sprinter | -5/Factory Hacker-Sprinter | -5/Garrison Scientist-Sprinter | -4/Factory Hacker-Sprinter | -4/Extension Hacker-Skirmisher | -4/Cetus Hacker-Mutant | -4/Archives Hacker-Sprinter | -4/Hub_04(d) Hacker-Sprinter | -3/Research Hacker-Sprinter | -3/Quarantine Hacker-Sprinter | -2/Research Hacker-Sprinter | -2/Garrison Hacker-Sprinter | -1/Access Resources | -11 -10 -10 -9 -9 -9 -8 -8 -8 -8 -8 -7 -7 -7 -7 -6 -6 -6 -6 -5 -5 -5 -5 -4 -4 -4 -4 -4 -3 -3 -2 -2 -1 ----------- Run | Yrd Mat Min Mat Min Exi Min Mat Gar Mat Gar Fac Gar Fac DSF Fac Was Fac Gar Fac Gar Fac Gar Fac Ext Cet Arc Hub Res Qua Res Gar Acc Matter Collected 5481 | 284 391 203 674 136 20 . 93 822 458 122 . 156 105 2 368 . 138 60 103 37 . 10 210 554 174 45 70 . 44 117 85 . Remotely . | . . . . . . . . . . . . . . . . . . . . . . . . . . . . . . . . . Salvage Created 7250 | 99 604 132 1057 180 . . 143 927 396 82 . 156 . . 413 . 278 60 . 155 . 54 269 1197 345 107 83 . . 150 363 . Parts 401 | 4 42 9 52 9 . . 9 71 23 7 . 12 . . 19 . 15 3 . 7 . 6 14 48 13 11 8 . . 7 12 . Haulers Intercepted 8 | . 2 . 2 . . . . . 1 . . . . . 2 . . . . . . . . . . . . . . 1 . . Recyclers Shooed 8 | 1 2 1 4 . . . . . . . . . . . . . . . . . . . . . . . . . . . . . Parts Field Recycled . | . . . . . . . . . . . . . . . . . . . . . . . . . . . . . . . . . Retrieved Matter . | . . . . . . . . . . . . . . . . . . . . . . . . . . . . . . . . . Parts Self-Destructed . | . . . . . . . . . . . . . . . . . . . . . . . . . . . . . . . . . Prevented . | . . . . . . . . . . . . . . . . . . . . . . . . . . . . . . . . . Parts Restored . | . . . . . . . . . . . . . . . . . . . . . . . . . . . . . . . . . Kills | -11 -10 -10 -9 -9 -9 -8 -8 -8 -8 -8 -7 -7 -7 -7 -6 -6 -6 -6 -5 -5 -5 -5 -4 -4 -4 -4 -4 -3 -3 -2 -2 -1 ------- Run | Yrd Mat Min Mat Min Exi Min Mat Gar Mat Gar Fac Gar Fac DSF Fac Was Fac Gar Fac Gar Fac Gar Fac Ext Cet Arc Hub Res Qua Res Gar Acc Combat Hostiles Destroyed 106 | . 15 3 10 2 . . 3 23 4 3 . 6 . . 4 . 3 2 . 2 . 2 1 14 3 . 2 . . . 4 . Melee 13 | . . . . . . . . 4 . 1 . 1 . . 4 . . . . . . . . 1 . . . . . . 2 . Guns 80 | . 15 3 10 2 . . 3 19 4 2 . 5 . . . . 1 1 . . . . 1 11 1 . 2 . . . . . AOE 8 | . . . . . . . . . . . . . . . . . 2 1 . 1 . 2 . 1 . . . . . . 1 . Classes Destroyed 16 | 2 6 . 3 . . . . 2 . 1 . . . . . . . . . . . . 1 . . . . . . . 1 . Worker 7 | . . . 3 . . . . . . . . . . . . . . . . . . . 4 . . . . . . . . . Builder 1 | . . . . . . . . . . . . . . . . . . . . . . . 1 . . . . . . . . . Tunneler 2 | 1 . . . . . . . . . . . . . . 1 . . . . . . . . . . . . . . . . . Hauler 8 | . 2 . 2 . . . . . 1 . . . . . 2 . . . . . . . . . . . . . . 1 . . Recycler 9 | 1 1 1 4 1 . . . . 1 . . . . . . . . . . . . . . . . . . . . . . . Mechanic 1 | . 1 . . . . . . . . . . . . . . . . . . . . . . . . . . . . . . . Operator 12 | . 2 . 1 . . . . 1 . . . . . . . . 1 . . . . . 1 1 . 3 1 . . 1 . . Watcher 15 | . 2 . 3 . . . . . 2 . . . . . 2 . 2 . . . . . 2 . 2 . . . . . . . Swarmer 39 | . 12 3 . . . . . 7 . 1 . 6 . . 4 . . 2 . . . 2 . . . . 2 . . . . . Cutter 1 | . . . . . . . . . . 1 . . . . . . . . . . . . . . . . . . . . . . Grunt 32 | . 3 . 7 . . . 1 2 1 1 . . . . . . 2 . . 2 . . . 12 1 . . . . . . . Brawler 3 | . . . . . . . . 1 1 . . . . . . . . . . . . . . 1 . . . . . . . . Duelist 1 | . . . 1 . . . . . . . . . . . . . . . . . . . . . . . . . . . . . Sentry 21 | . . . 3 2 . . 2 8 2 . . . . . . . 1 . . . . . . 1 . . . . . . 2 . Hunter 2 | . . . . . . . . . . . . . . . . . . . . . . . . . . . . . . . 2 . Programmer 6 | . . . . . . . . 5 . . . . . . . . . . . . . . 1 . . . . . . . . . Cetus Guard 2 | . . . . . . . . . . . . . . . . . . . . . . . . . 2 . . . . . . . Best Kill Streak 8 | 1 6 2 5 2 . . 1 8 3 1 . 3 . . 4 . 2 2 . 2 . 2 3 8 3 1 2 . . 2 2 . Combat Bots Only 8 | . 6 2 3 2 . . 1 8 2 1 . 3 . . 4 . 2 2 . 2 . 2 1 8 2 . 2 . . . 2 . Max Kills in Single Turn 2 | 1 1 1 1 1 . . 1 2 1 1 . 1 . . 1 . 2 1 . 1 . 2 1 2 1 1 1 . . 1 1 . Gunslinging 1 | . . . . . . . . 1 . . . . . . . . . . . . . . . . . . . . . . . . Exploded 2 | . . . . . . . . . . . . . . . . . 2 1 . 1 . 2 . 1 . . . . . . 1 . Melee 1 | . . . . . . . . 1 . 1 . 1 . . 1 . . . . . . . . 1 . . . . . . 1 . Uniques/NPCs Destroyed . | . . . . . . . . . . . . . . . . . . . . . . . . . . . . . . . . . Combat | -11 -10 -10 -9 -9 -9 -8 -8 -8 -8 -8 -7 -7 -7 -7 -6 -6 -6 -6 -5 -5 -5 -5 -4 -4 -4 -4 -4 -3 -3 -2 -2 -1 -------- Run | Yrd Mat Min Mat Min Exi Min Mat Gar Mat Gar Fac Gar Fac DSF Fac Was Fac Gar Fac Gar Fac Gar Fac Ext Cet Arc Hub Res Qua Res Gar Acc Hostile Shots Fired 872 | . 62 13 33 11 . . 12 149 10 45 37 218 . 12 48 . 12 14 4 8 . 24 14 39 21 . 20 5 13 24 24 . Missed 396 | . 22 4 15 3 . . 6 49 4 25 23 102 . 6 21 . 7 5 4 5 . 14 6 19 6 . 11 5 8 16 10 . Hits 476 | . 40 9 18 8 . . 6 100 6 20 14 116 . 6 27 . 5 9 . 3 . 10 8 20 15 . 9 . 5 8 14 . Melee 7 | . . . 1 . . . . . . 5 . . . 1 . . . . . . . . . . . . . . . . . . Projectile 469 | . 40 9 17 8 . . 6 100 6 15 14 116 . 5 27 . 5 9 . 3 . 10 8 20 15 . 9 . 5 8 14 . AOE 5 | . . . . . . . . . . . . . . 1 . . . . . . . . . . . . 4 . . . . . Critical Strikes 12 | . . . 1 . . . . 1 . 2 . 2 . . 1 . . . . 1 . . 1 1 2 . . . . . . . Actively Blocked 2 | . . . . . . . . . . . . 2 . . . . . . . . . . . . . . . . . . . . Damage Taken 7093 | . 351 146 265 88 . . 88 1284 94 236 112 1465 . 196 328 . 74 172 . 55 . 197 188 414 308 26 362 . 118 225 301 . Core 1617 | . 52 35 104 31 . . . 222 14 70 11 520 . 123 58 . . 49 . . . 36 37 25 53 . 52 . 28 23 74 . Absorbed by Shields 549 | . . . . 33 . . . 98 . . . 72 . . 82 . . 43 . . . 22 . 9 128 . . . . . 62 . Redirected to Shielding 231 | . . . . . . . . . . . . 231 . . . . . . . . . . . . . . . . . . . . Regen/Repaired (Parts) 406 | . . . . . . . . . . . . . . . . . . . . . . . . 120 . . . . 10 103 173 . Core Remaining (%) 76 | 100 . 65 . . . 66 . . . 44 . . . 6 . . . 87 . . . 96 . . . . 85 . 97 . 93 100 Volleys Fired 391 | 11 79 13 90 6 . . 11 55 26 7 3 15 . . . . 3 6 1 4 . 1 8 33 11 . 5 . . . 3 . Largest 3 | 2 2 2 3 3 . . 3 3 3 3 3 3 . . . . 3 2 1 1 . 1 3 3 3 . 3 . . . 1 . Hottest 130 | 40 40 40 63 66 . . 75 75 68 68 68 71 . . . . 105 70 5 60 . 60 105 130 105 . 105 . . . 60 . Shots Fired 920 | 22 158 26 223 16 . . 33 150 61 16 9 36 . . . . 6 10 1 3 . 1 23 83 28 . 12 . . . 3 . Gun 895 | 22 158 26 223 16 . . 33 150 61 16 9 36 . . . . 5 8 . . . . 23 72 25 . 12 . . . . . Cannon 15 | . . . . . . . . . . . . . . . . . 1 2 . 3 . 1 . 2 3 . . . . . 3 . Launcher . | . . . . . . . . . . . . . . . . . . . . . . . . . . . . . . . . . Special 10 | . . . . . . . . . . . . . . . . . . . 1 . . . . 9 . . . . . . . . Kinetic 895 | 22 158 26 223 16 . . 33 150 61 16 9 36 . . . . 5 8 . . . . 23 72 25 . 12 . . . . . Thermal . | . . . . . . . . . . . . . . . . . . . . . . . . . . . . . . . . . Explosive . | . . . . . . . . . . . . . . . . . . . . . . . . . . . . . . . . . Electromagnetic 15 | . . . . . . . . . . . . . . . . . 1 2 . 3 . 1 . 2 3 . . . . . 3 . Robot Hit Streak 19 | 3 11 5 10 16 . . 18 19 9 7 4 13 . . . . 2 3 2 1 . 2 4 19 5 . 4 . . . 3 . Robot Miss Streak 6 | 2 6 2 6 . . . 1 2 6 3 1 6 . . . . 3 2 . 1 . . 1 2 2 . 3 . . . 1 . Penetration Max 3 | . . . . . . . . . . . . . . . . . . . . . . . 1 3 2 . 1 . . . . . Secondary Targets 12 | . 4 . 1 1 . . . 3 1 . . . . . . . . . . . . . . . 1 . 1 . . . . . Max Gunslinging Chain 1 | . 1 . 1 1 . . . 1 1 . . . . . . . . . . . . . . . 1 . 1 . . . . . Shots Hit Robots 644 | 12 85 14 122 17 . . 26 125 37 16 8 25 . . 14 . 8 4 1 1 . 1 27 62 19 5 7 . . 3 5 . Core Hits 305 | 2 39 5 47 5 . . 6 41 14 5 . 10 . . 9 . 8 3 . 12 . 2 9 48 24 3 3 . . 1 9 . Critical Kills 19 | 1 . . . . . . . . . . . . . . . . 1 1 . . . . 1 10 3 . 2 . . . . . Critical Parts Destroyed 32 | . 1 . 2 . . . . 1 1 . . . . . . . . . . . . . 3 18 6 . . . . . . . Critical Strikes 56 | 1 1 . 2 . . . . 1 1 1 . . . . 1 . 1 1 . . . . 4 30 9 . 2 . . . 1 . Destroy 53 | 1 1 . 2 . . . . 1 1 . . . . . . . 1 1 . . . . 4 30 9 . 2 . . . . . Sever 3 | . . . . . . . . . . 1 . . . . 1 . . . . . . . . . . . . . . . 1 . Melee Attacks 242 | . . . 2 2 . . 3 35 12 33 3 29 . . 21 . 25 5 1 6 . 1 26 10 . 6 3 1 10 3 5 . Impact . | . . . . . . . . . . . . . . . . . . . . . . . . . . . . . . . . . Slashing 225 | . . . 2 2 . . 3 34 2 30 3 26 . . 21 . 25 5 1 6 . 1 26 10 . 6 3 1 10 3 5 . Piercing . | . . . . . . . . . . . . . . . . . . . . . . . . . . . . . . . . . Sneak Attacks 27 | . . . . 1 . . . 2 3 2 1 . . . 3 . . . . . . . 6 2 . 4 1 . . 2 . . Combat Hostiles 2 | . . . . . . . . 1 . 1 . . . . . . . . . . . . . . . . . . . . . . Follow-up Attacks . | . . . . . . . . . . . . . . . . . . . . . . . . . . . . . . . . . Damage Inflicted 14095 | 125 796 160 1612 358 . . 449 2288 612 305 171 471 . . 672 . 560 172 . 573 . 177 950 1241 707 462 181 . . 607 446 . Guns 7351 | 125 796 160 1612 196 . . 449 1920 445 139 110 321 . . . . 8 30 . . . . 160 630 190 . 60 . . . . . Cannons 72 | . . . . . . . . . . . . . . . . . 8 . . 7 . 4 . 5 28 . . . . . 20 . Explosions 2239 | . . . . . . . . . . . . . . . . . 246 142 . 566 . 173 . 441 489 . . . . . 182 . Melee 4408 | . . . . 162 . . . 368 167 166 61 150 . . 672 . 298 . . . . . 790 140 . 462 121 . . 607 244 . Ramming 25 | . . . . . . . . . . . . . . . . . . . . . . . . 25 . . . . . . . . Kinetic 7351 | 125 796 160 1612 196 . . 449 1920 445 139 110 321 . . . . 8 30 . . . . 160 630 190 . 60 . . . . . Thermal 174 | . . . . . . . . . . . . . . . . . . . . . . . . . 174 . . . . . . . Explosive . | . . . . . . . . . . . . . . . . . . . . . . . . . . . . . . . . . Electromagnetic 2137 | . . . . . . . . . . . . . . . . . 254 142 . 573 . 177 . 446 343 . . . . . 202 . Impact . | . . . . . . . . . . . . . . . . . . . . . . . . . . . . . . . . . Slashing 4408 | . . . . 162 . . . 368 167 166 61 150 . . 672 . 298 . . . . . 790 140 . 462 121 . . 607 244 . Piercing . | . . . . . . . . . . . . . . . . . . . . . . . . . . . . . . . . . Highest Corruption 18 | . . 1 . . . . . 12 12 12 . 1 1 1 . 5 11 18 . 6 6 8 . 4 9 9 2 . . . 4 . Average Corruption 7 | . . 1 . . . . . 9 12 12 . 1 1 1 . 5 7 16 . 4 6 6 . 3 8 6 2 . . . 3 . Corruption Purged 9 | . . . . . . . . . . . . . . . . . . . . . . . . . . 9 . . . . . . Corruption Blocked . | . . . . . . . . . . . . . . . . . . . . . . . . . . . . . . . . . Effects 133 | . . 2 . . . . . 37 23 13 . 2 . . . 1 13 8 . 4 . 3 . 12 10 5 . . . . . . Message Errors 36 | . . 1 . . . . . 9 5 5 . . . . . . 4 1 . 1 . 2 . 4 1 3 . . . . . . Matter Fused 29 | . . 1 . . . . . 11 4 1 . 1 . . . . 4 2 . . . . . 2 2 1 . . . . . . Heat Flow Errors 11 | . . . . . . . . 5 1 . . . . . . . 2 1 . . . 1 . 1 . . . . . . . . Energy Discharges 12 | . . . . . . . . 4 2 1 . . . . . . . 2 . 1 . . . 1 1 . . . . . . . Parts Rejected 3 | . . . . . . . . . . 2 . 1 . . . . . . . . . . . . . . . . . . . . Data Loss (minor) 19 | . . . . . . . . 3 4 3 . . . . . 1 2 1 . 1 . . . 2 1 1 . . . . . . Data Loss (major) 5 | . . . . . . . . 1 1 . . . . . . . 1 . . . . . . . 2 . . . . . . . Misfires 5 | . . . . . . . . 1 1 . . . . . . . . . . . . . . 2 1 . . . . . . . Alerts 3 | . . . . . . . . 1 . . . . . . . . . 1 . . . . . . 1 . . . . . . . Misdirections 2 | . . . . . . . . . 1 1 . . . . . . . . . . . . . . . . . . . . . . Weapon Failures 8 | . . . . . . . . 2 4 . . . . . . . . . . 1 . . . . 1 . . . . . . . Overload Shots . | . . . . . . . . . . . . . . . . . . . . . . . . . . . . . . . . . Overflow Damage 797 | . . . . 102 . . . 35 56 . 31 . . . 22 . 40 . . . . . 229 40 . 89 86 . . 67 . . Projectiles . | . . . . . . . . . . . . . . . . . . . . . . . . . . . . . . . . . Explosions . | . . . . . . . . . . . . . . . . . . . . . . . . . . . . . . . . . Melee 797 | . . . . 102 . . . 35 56 . 31 . . . 22 . 40 . . . . . 229 40 . 89 86 . . 67 . . Knockbacks . | . . . . . . . . . . . . . . . . . . . . . . . . . . . . . . . . . Impact . | . . . . . . . . . . . . . . . . . . . . . . . . . . . . . . . . . Kinetic . | . . . . . . . . . . . . . . . . . . . . . . . . . . . . . . . . . Secondary . | . . . . . . . . . . . . . . . . . . . . . . . . . . . . . . . . . Self-Inflicted Damage 98 | . . . . . . . . . . . . . . . . . . 86 . . . . . 12 . . . . . . . . Shots 2 | . . . . . . . . . . . . . . . . . . 2 . . . . . . . . . . . . . . Rammed 1 | . . . . . . . . . . . . . . . . . . . . . . . . 1 . . . . . . . . Targets Rammed 1 | . . . . . . . . . . . . . . . . . . . . . . . . 1 . . . . . . . . Kicked . | . . . . . . . . . . . . . . . . . . . . . . . . . . . . . . . . . Crushed . | . . . . . . . . . . . . . . . . . . . . . . . . . . . . . . . . . Highest Temperature 450 | . 14 6 132 102 . . 239 325 166 16 31 44 . . 188 172 305 450 . 8 . 243 16 235 7 . . . 81 . . . Average Temperature 78 | . 4 3 45 48 . . 73 101 48 9 15 10 . . 78 93 120 134 . 7 . 117 8 93 5 . . . 47 . . . Received Heat Transfer 1024 | . 48 24 126 24 . . 27 165 27 9 33 252 . . . . 36 . . 18 . . . 112 33 . . . 27 27 36 . Effects 3 | . . . . . . . . . . . . . . . . . 1 2 . . . . . . . . . . . . . . Shutdowns 1 | . . . . . . . . . . . . . . . . . . 1 . . . . . . . . . . . . . . Interference 2 | . . . . . . . . . . . . . . . . . 1 1 . . . . . . . . . . . . . . Siege Activations . | . . . . . . . . . . . . . . . . . . . . . . . . . . . . . . . . . Martial Activations . | . . . . . . . . . . . . . . . . . . . . . . . . . . . . . . . . . Shielding Activations . | . . . . . . . . . . . . . . . . . . . . . . . . . . . . . . . . . Robots Disrupted . | . . . . . . . . . . . . . . . . . . . . . . . . . . . . . . . . . Combat Hostiles . | . . . . . . . . . . . . . . . . . . . . . . . . . . . . . . . . . Robots Corrupted 5 | . . . . . . . . . . . . . . . . . . . . 1 . . . 1 2 . . . . . 1 . Combat Hostiles 5 | . . . . . . . . . . . . . . . . . . . . 1 . . . 1 2 . . . . . 1 . Parts Fried 10 | . . . . . . . . . . . . . . . . . 2 1 . 1 . 1 . . 3 . . . . . 2 . Impact Corruptions . | . . . . . . . . . . . . . . . . . . . . . . . . . . . . . . . . . Robots Melted . | . . . . . . . . . . . . . . . . . . . . . . . . . . . . . . . . . Combat Hostiles . | . . . . . . . . . . . . . . . . . . . . . . . . . . . . . . . . . Parts Melted 8 | . . . . . . . . . . . . . . . . . . . . . . . 6 2 . . . . . . . . Heat Transferred 100 | . . . . . . . . . . . . . . . . . . . . . . . . . 100 . . . . . . . Parts Sabotaged . | . . . . . . . . . . . . . . . . . . . . . . . . . . . . . . . . . Parts Stolen . | . . . . . . . . . . . . . . . . . . . . . . . . . . . . . . . . . Parts Stripped . | . . . . . . . . . . . . . . . . . . . . . . . . . . . . . . . . . Power Chain Reactions 1 | . . . . . . . . . . . . . . . . . . . . . . . . . 1 . . . . . . . Latent Energy Used 1373 | . . . . . . . . . . . . . . . . . 200 224 . 312 . 109 . 186 151 . . . . . 191 . LE Corruption 27 | . . . . . . . . . . . . . . . . . 3 4 . 6 . 2 . 4 4 . . . . . 4 . Alert | -11 -10 -10 -9 -9 -9 -8 -8 -8 -8 -8 -7 -7 -7 -7 -6 -6 -6 -6 -5 -5 -5 -5 -4 -4 -4 -4 -4 -3 -3 -2 -2 -1 ------- Run | Yrd Mat Min Mat Min Exi Min Mat Gar Mat Gar Fac Gar Fac DSF Fac Was Fac Gar Fac Gar Fac Gar Fac Ext Cet Arc Hub Res Qua Res Gar Acc Maximum Alert Level 5 | . 1 1 2 1 . . . 3 2 2 1 4 2 2 1 . 1 2 1 2 1 1 . 2 2 1 1 . 5 4 3 2 Low Security (%) 40 | 100 67 91 38 91 . 100 100 6 64 5 . 1 . . 20 100 99 3 . 46 . 22 100 19 . 25 66 100 . . . . Level 1 32 | . 32 8 27 8 . . . 24 15 70 100 40 . 28 79 . . 82 100 27 100 77 . 63 51 74 33 . . . . . Level 2 15 | . . . 33 . . . . 26 20 23 . 28 100 71 . . . 14 . 25 . . . 16 48 . . . . . . 100 Level 3 8 | . . . . . . . . 42 . . . 26 . . . . . . . . . . . . . . . . . 7 100 . Level 4 1 | . . . . . . . . . . . . 2 . . . . . . . . . . . . . . . . . 92 . . Level 5 . | . . . . . . . . . . . . . . . . . . . . . . . . . . . . . . . . . High Security . | . . . . . . . . . . . . . . . . . . . . . . . . . . . . . . . . . Max Security 2 | . . . . . . . . . . . . . . . . . . . . . . . . . . . . . 99 . . . Peak Influence 1709 | 5 244 219 550 202 . . 125 875 447 601 315 1112 554 452 250 67 206 409 224 405 212 307 166 461 516 398 330 175 1709 1190 1032 635 Initial 1100 | . . 65 61 202 . . . 81 426 164 315 193 554 387 226 67 39 144 214 149 212 148 161 49 243 194 49 159 76 1100 892 619 Average 334 | 1 153 142 291 171 . . 62 553 231 329 298 572 554 414 217 64 50 329 216 257 212 230 128 270 405 264 163 158 1661 1125 955 606 Influence Increases 8574 | 10 519 254 839 60 . . 235 864 330 487 2 1144 . 65 146 . 380 265 10 256 . 169 129 772 423 224 476 57 109 140 140 69 Destroy 0b10 Robot/C 3000 | . 300 120 340 40 . . 60 460 180 60 . 120 . . 80 . 60 40 . 40 . 100 20 380 220 80 220 . . . 80 . Destroy 0b10 Robot/NC 285 | 10 40 5 65 5 . . . 5 20 . . . . . 25 . 15 . . . . . 40 10 10 15 10 . . 10 . . Destroy Leader 472 | . 58 20 120 . . . 20 20 66 . . . . . 16 . 14 . . 10 . . 14 62 10 . 40 . . 2 . . Allied During Kill 477 | . . 4 47 . . . . . 28 . . 1 . . . . . . . . . 15 . 117 135 95 35 . . . . . Trap Triggered on 0b10 30 | . . . 10 . . . . . . . . . . 20 . . . . . . . . . . . . . . . . . . Successful Hack 383 | . 31 . 44 . . . 46 28 4 14 . . . . 9 . 58 8 8 . . . . 16 . . . 25 . 38 . 54 Select Force Hacks 110 | . . . 60 . . . . . . . . . . . . . . . . . . . . . . . 50 . . . . . Disable Machine 150 | . . . . . . . . . . . . . . . . . 15 . . . . . . . . 30 . . 105 . . . Anti-Garrison Action 750 | . . . . . . . . 200 . 150 . 250 . . . . . 100 . . . . . . . . . . . . 50 . Destroy Structure 427 | . . . 3 . . . 4 61 2 53 2 38 . . 1 . 23 57 2 26 . 9 10 22 48 4 46 2 4 . 10 . Partial Spotted 315 | . 15 30 15 15 . . 60 15 30 . . . . . . . 30 . . . . . 15 45 . . 30 15 . . . . Lose Combat Pursuer 2175 | . 75 75 135 . . . 45 75 . 210 . 735 . 45 15 . 165 60 . 180 . 45 30 120 . . 45 15 . 90 . 15 Influence Decreases 9640 | 10 350 264 478 428 152 . 110 114 952 139 326 364 503 187 386 135 231 62 205 65 193 74 336 437 372 570 311 226 60 799 298 503 Entered New Map 5660 | . . 104 98 318 152 . . 44 449 89 286 84 503 167 206 125 18 62 195 65 193 64 146 51 192 292 91 146 60 749 298 413 Time Decay 2685 | 10 350 150 350 110 . . 110 . 198 . 30 . . . 160 10 213 . 10 . . . 150 206 120 278 60 70 . 40 . 60 Lost Part 490 | . . 10 10 . . . . 70 10 10 10 180 . 20 10 . . . . . . 10 40 20 20 . 60 . . 10 . . Lost Ally 530 | . . . 20 . . . . . 20 40 . 100 . . 10 . . . . . . . . 160 40 . 100 10 . . . 30 Purge Threat 275 | . . . . . . . . . 275 . . . . . . . . . . . . . . . . . . . . . . . Squads Dispatched 35 | . 1 . 5 . . . 1 . 2 . 1 . 1 1 . . 4 . . . . . 2 4 1 . 4 . 6 1 . 1 Investigation 12 | . . . 2 . . . . . . . . . 1 . . . 3 . . . . . . 3 1 . 2 . . . . . Extermination 3 | . . . . . . . . . . . . . . . . . 1 . . . . . 1 . . . . . . . . 1 Reinforcement 13 | . 1 . 3 . . . 1 . 1 . 1 . . 1 . . . . . . . . 1 1 . . 2 . . 1 . . Assault 6 | . . . . . . . . . . . . . . . . . . . . . . . . . . . . . 6 . . . Garrison 1 | . . . . . . . . . 1 . . . . . . . . . . . . . . . . . . . . . . . Intercept . | . . . . . . . . . . . . . . . . . . . . . . . . . . . . . . . . . Searches Triggered . | . . . . . . . . . . . . . . . . . . . . . . . . . . . . . . . . . Construction Impeded 1 | . . . . . . . . . . . . . . . . . . . . . . . . 1 . . . . . . . . Haulers Reinforced . | . . . . . . . . . . . . . . . . . . . . . . . . . . . . . . . . . Active Scanning Responses . | . . . . . . . . . . . . . . . . . . . . . . . . . . . . . . . . . Cargo Convoy Interrupts . | . . . . . . . . . . . . . . . . . . . . . . . . . . . . . . . . . Alert ID Control Effect 1 | . . . . . . . . . . . . . . . . . . . . . . . . . 1 . . . . . . . Stealth | -11 -10 -10 -9 -9 -9 -8 -8 -8 -8 -8 -7 -7 -7 -7 -6 -6 -6 -6 -5 -5 -5 -5 -4 -4 -4 -4 -4 -3 -3 -2 -2 -1 --------- Run | Yrd Mat Min Mat Min Exi Min Mat Gar Mat Gar Fac Gar Fac DSF Fac Was Fac Gar Fac Gar Fac Gar Fac Ext Cet Arc Hub Res Qua Res Gar Acc Distress Signals 18 | . . . 3 . . . 3 . . . . . . . 1 . . . 1 . . . 1 2 2 . 1 2 . 1 . 1 Communications Jammed . | . . . . . . . . . . . . . . . . . . . . . . . . . . . . . . . . . Distress Signals . | . . . . . . . . . . . . . . . . . . . . . . . . . . . . . . . . . Times Spotted 416 | . 31 10 32 2 . . 10 25 20 24 3 56 . 6 11 4 27 5 4 14 . 15 10 29 9 4 21 4 20 8 4 8 Peak Tracking Total 17 | . 8 3 9 2 . . 5 8 6 10 3 11 . 4 5 4 9 3 4 5 . 9 5 7 5 1 15 2 17 7 2 4 Tactical Retreats 57 | . 2 4 4 . . . 3 2 . 4 . 15 . 3 1 . 3 2 . 2 . 2 1 3 . . 2 1 . 2 . 1 Traps | -11 -10 -10 -9 -9 -9 -8 -8 -8 -8 -8 -7 -7 -7 -7 -6 -6 -6 -6 -5 -5 -5 -5 -4 -4 -4 -4 -4 -3 -3 -2 -2 -1 ------- Run | Yrd Mat Min Mat Min Exi Min Mat Gar Mat Gar Fac Gar Fac DSF Fac Was Fac Gar Fac Gar Fac Gar Fac Ext Cet Arc Hub Res Qua Res Gar Acc Traps Triggered 31 | . . 1 . . . . . 7 . 1 . 6 . . 2 . 2 2 . 1 . 3 1 2 . . . . . . 3 . Indirectly . | . . . . . . . . . . . . . . . . . . . . . . . . . . . . . . . . . Trap Hack Attempts 89 | . 55 . 34 . . . . . . . . . . . . . . . . . . . . . . . . . . . . . Triggered . | . . . . . . . . . . . . . . . . . . . . . . . . . . . . . . . . . Disarmed 8 | . 2 . 6 . . . . . . . . . . . . . . . . . . . . . . . . . . . . . Reprogrammed 2 | . 2 . . . . . . . . . . . . . . . . . . . . . . . . . . . . . . . Reused 3 | . . . 1 . . . . . . . . . . 2 . . . . . . . . . . . . . . . . . . Traps Extracted 6 | . 2 4 . . . . . . . . . . . . . . . . . . . . . . . . . . . . . . Installed 5 | . . . 1 . . . . . . . . . . 4 . . . . . . . . . . . . . . . . . . Triggered 3 | . . . 1 . . . . . . . . . . 2 . . . . . . . . . . . . . . . . . . Most Traps Carried 4 | . 2 4 4 3 3 3 3 3 3 3 3 3 3 3 3 3 3 . . . . . . . . . . . . . . . Machines | -11 -10 -10 -9 -9 -9 -8 -8 -8 -8 -8 -7 -7 -7 -7 -6 -6 -6 -6 -5 -5 -5 -5 -4 -4 -4 -4 -4 -3 -3 -2 -2 -1 ---------- Run | Yrd Mat Min Mat Min Exi Min Mat Gar Mat Gar Fac Gar Fac DSF Fac Was Fac Gar Fac Gar Fac Gar Fac Ext Cet Arc Hub Res Qua Res Gar Acc Machines Disabled 20 | . . . . . . . . 3 . 2 . 3 . . . . 1 1 . . . . . . . 2 . . 7 . 1 . Max in Single Turn 1 | . . . . . . . . 1 . 1 . 1 . . . . 1 1 . . . . . . . . . . 1 . 1 . Garrison Access 1 | . . . . . . . . . . . . . . . . . 1 . . . . . . . . . . . . . . . Garrison Relay 10 | . . . . . . . . 3 . 2 . 3 . . . . . 1 . . . . . . . . . . . . 1 . Network Hub 2 | . . . . . . . . . . . . . . . . . . . . . . . . . . . 2 . . . . . Machines Repaired . | . . . . . . . . . . . . . . . . . . . . . . . . . . . . . . . . . Machines Dismantled . | . . . . . . . . . . . . . . . . . . . . . . . . . . . . . . . . . Machines Sabotaged 1 | . . . . . . . . . . . . . . . . . . . . . . . . . . . 1 . . . . . Overloaded Fab Kills . | . . . . . . . . . . . . . . . . . . . . . . . . . . . . . . . . . Hacking | -11 -10 -10 -9 -9 -9 -8 -8 -8 -8 -8 -7 -7 -7 -7 -6 -6 -6 -6 -5 -5 -5 -5 -4 -4 -4 -4 -4 -3 -3 -2 -2 -1 --------- Run | Yrd Mat Min Mat Min Exi Min Mat Gar Mat Gar Fac Gar Fac DSF Fac Was Fac Gar Fac Gar Fac Gar Fac Ext Cet Arc Hub Res Qua Res Gar Acc Machines Accessed 91 | . 10 . 10 1 2 . 5 4 4 3 1 2 1 . 4 . 13 1 2 . 1 . 3 11 1 . 1 4 . 5 . 2 Terminals 65 | . 7 . 6 . . . 4 4 2 3 . 2 1 . 3 . 7 1 1 . . . 2 10 1 . 1 4 . 4 . 2 Fabricators 4 | . . . . . . . . . . . . . . . 1 . 3 . . . . . . . . . . . . . . . Repair Stations 2 | . 1 . . . . . . . . . . . . . . . . . . . . . . 1 . . . . . . . . Recycling Units 4 | . 2 . 2 . . . . . . . . . . . . . . . . . . . . . . . . . . . . . Scanalyzers 5 | . . . 2 . . . . . 1 . . . . . . . 1 . . . . . 1 . . . . . . . . . Garrison Access 8 | . . . . . . . 1 . 1 . 1 . . . . . 2 . 1 . 1 . . . . . . . . 1 . . Total Hacks 234 | . 27 . 38 1 2 . 16 6 10 5 1 5 4 . 7 . 41 3 3 . 1 . 6 19 2 . 1 13 . 17 . 6 Successful 131 | . 15 . 24 1 2 . 9 3 3 1 1 . 1 . 3 . 29 1 2 . 1 . 4 9 . . 1 6 . 12 . 3 Failed 100 | . 12 . 13 . . . 7 3 6 4 . 5 3 . 4 . 11 2 1 . . . 2 10 2 . . 7 . 5 . 3 Catastrophic 12 | . 1 . 1 . . . . 2 . 1 . . . . . . 1 2 . . . . . 1 1 . . 2 . . . . Database Lockouts 3 | . . . 1 . . . . . 1 . . . . . . . 1 . . . . . . . . . . . . . . . Manual 141 | . 22 . 27 . 1 . 13 . 7 2 . . . . 5 . 23 2 2 . . . . 6 1 . 1 12 . 15 . 2 Terminals 181 | . 20 . 27 . . . 15 6 7 5 . 5 4 . 6 . 24 3 2 . . . 2 17 2 . 1 13 . 16 . 6 Fabricators 7 | . . . . . . . . . . . . . . . 1 . 6 . . . . . . . . . . . . . . . Repair Stations 3 | . 1 . . . . . . . . . . . . . . . . . . . . . . 2 . . . . . . . . Recycling Units 12 | . 6 . 6 . . . . . . . . . . . . . . . . . . . . . . . . . . . . . Scanalyzers 19 | . . . 5 . . . . . 2 . . . . . . . 8 . . . . . 4 . . . . . . . . . Garrison Access 9 | . . . . . . . 1 . 1 . 1 . . . . . 3 . 1 . 1 . . . . . . . . 1 . . Terminal Hacks 44 | . 2 . 8 1 2 . 1 3 . 1 . . 1 . 1 . 7 1 . . . . 2 7 . . . 1 . 4 . 2 Record 1 | . . . . . 1 . . . . . . . . . . . . . . . . . . . . . . . . . . . Part Schematic 1 | . . . . . . . . . . . . . . . . . 1 . . . . . . . . . . . . . . . Robot Analysis 3 | . 2 . 1 . . . . . . . . . . . . . . . . . . . . . . . . . . . . . Prototype ID Bank 2 | . . . 2 . . . . . . . . . . . . . . . . . . . . . . . . . . . . . Open Door 11 | . . . . 1 . . . 1 . . . . . . . . . . . . . . 1 7 . . . . . . . 1 Open DSF 3 | . . . . . . . . . . . . . 1 . 1 . . . . . . . 1 . . . . . . . . . Level Access Points 1 | . . . . . . . . . . . . . . . . . . . . . . . . . . . . . . . . 1 Branch Access Points 2 | . . . . . . . . . . . . . . . . . 1 . . . . . . . . . . . . 1 . . Emergency Access Points 2 | . . . . . . . . 1 . . . . . . . . . 1 . . . . . . . . . . . . . . Terminal Index 3 | . . . 1 . . . . . . . . . . . . . 1 . . . . . . . . . . 1 . . . . Garrison Index 1 | . . . . . . . . . . . . . . . . . 1 . . . . . . . . . . . . . . . Locate Traps 3 | . . . 2 . . . . . . . . . . . . . 1 . . . . . . . . . . . . . . . Disarm Traps 1 | . . . 1 . . . . . . . . . . . . . . . . . . . . . . . . . . . . . Registered Components 2 | . . . . . . . . . . . . . . . . . 1 . . . . . . . . . . . . 1 . . Registered Prototypes 1 | . . . . . . . . . . . . . . . . . . . . . . . . . . . . . . 1 . . Zone Layout 4 | . . . 1 . . . 1 . . . . . . . . . 1 . . . . . . . . . . . . 1 . . Garrison Registry 2 | . . . . . . . . 1 . 1 . . . . . . . . . . . . . . . . . . . . . . Proto ID Catalog 1 | . . . . . 1 . . . . . . . . . . . . . . . . . . . . . . . . . . . Fabricator Hacks 4 | . . . . . . . . . . . . . . . . . 4 . . . . . . . . . . . . . . . Network Status 1 | . . . . . . . . . . . . . . . . . 1 . . . . . . . . . . . . . . . Load Schematic 1 | . . . . . . . . . . . . . . . . . 1 . . . . . . . . . . . . . . . Build 2 | . . . . . . . . . . . . . . . . . 2 . . . . . . . . . . . . . . . Repair Station Hacks . | . . . . . . . . . . . . . . . . . . . . . . . . . . . . . . . . . Recycling Unit Hacks 1 | . 1 . . . . . . . . . . . . . . . . . . . . . . . . . . . . . . . Retrieve Components 1 | . 1 . . . . . . . . . . . . . . . . . . . . . . . . . . . . . . . Scanalyzer 10 | . . . 2 . . . . . 1 . . . . . . . 5 . . . . . 2 . . . . . . . . . Insert Component 2 | . . . 1 . . . . . . . . . . . . . 1 . . . . . . . . . . . . . . . Analyze 2 | . . . 1 . . . . . . . . . . . . . 1 . . . . . . . . . . . . . . . Retrieve Study 6 | . . . . . . . . . 1 . . . . . . . 3 . . . . . 2 . . . . . . . . . Garrison Access Hacks 9 | . . . . . . . 1 . 1 . 1 . . . . . 3 . 1 . 1 . . . . . . . . 1 . . Unlock Access 7 | . . . . . . . 1 . 1 . 1 . . . . . 1 . 1 . 1 . . . . . . . . 1 . . Seal Access 1 | . . . . . . . . . . . . . . . . . 1 . . . . . . . . . . . . . . . Coupler Status 1 | . . . . . . . . . . . . . . . . . 1 . . . . . . . . . . . . . . . Unauthorized Hacks 63 | . 12 . 14 . . . 7 . 1 . . . . . 2 . 10 . 1 . . . . 2 . . 1 5 . 7 . 1 Terminals 54 | . 10 . 9 . . . 7 . 1 . . . . . 2 . 9 . 1 . . . . 1 . . 1 5 . 7 . 1 Track 3 | . . . 1 . . . . . . . . . . . . . 1 . . . . . . 1 . . . . . . . . Assimilate 8 | . 1 . . . . . 2 . . . . . . . 2 . . . . . . . . . . . . 1 . 1 . 1 Botnet 14 | . 4 . 2 . . . 2 . . . . . . . . . 2 . . . . . . . . . . 1 . 3 . . Operators 2 | . . . 1 . . . . . . . . . . . . . 1 . . . . . . . . . . . . . . . Skim 26 | . 5 . 5 . . . 3 . 1 . . . . . . . 5 . 1 . . . . . . . . 3 . 3 . . Sabotage 1 | . . . . . . . . . . . . . . . . . . . . . . . . . . . 1 . . . . . Fabricators 1 | . . . . . . . . . . . . . . . . . 1 . . . . . . . . . . . . . . . Prioritize 1 | . . . . . . . . . . . . . . . . . 1 . . . . . . . . . . . . . . . Repair Stations 1 | . . . . . . . . . . . . . . . . . . . . . . . . 1 . . . . . . . . Patch 1 | . . . . . . . . . . . . . . . . . . . . . . . . 1 . . . . . . . . Recycling Units 5 | . 2 . 3 . . . . . . . . . . . . . . . . . . . . . . . . . . . . . Reject 4 | . 2 . 2 . . . . . . . . . . . . . . . . . . . . . . . . . . . . . Mask 1 | . . . 1 . . . . . . . . . . . . . . . . . . . . . . . . . . . . . Scanalyzers 2 | . . . 2 . . . . . . . . . . . . . . . . . . . . . . . . . . . . . Extract 2 | . . . 2 . . . . . . . . . . . . . . . . . . . . . . . . . . . . . Garrison Access . | . . . . . . . . . . . . . . . . . . . . . . . . . . . . . . . . . Data Cores Recovered 3 | . . . . . . . . . . . . . . . . . . . . . . . 1 1 . . . . . 1 . . Used 1 | . . . . . . . . . . . . . . . . . . . . . . . . . . . . . . 1 . . Hacking Detections 65 | . 9 . 8 . . . 3 3 3 3 1 2 1 . 3 . 9 1 1 . . . 2 6 1 . . 4 . 4 . 1 Full Trace Events 13 | . 1 . . . . . . 1 . 1 . 2 1 . . . 3 1 . . . . . 2 1 . . . . . . . Feedback Events 1 | . . . . . . . . . . . . . . . . . . . . . . . . . 1 . . . . . . . Corruption 1 | . . . . . . . . . . . . . . . . . . . . . . . . . 1 . . . . . . . Feedback Blocked . | . . . . . . . . . . . . . . . . . . . . . . . . . . . . . . . . . Robot Schematics Acquired . | . . . . . . . . . . . . . . . . . . . . . . . . . . . . . . . . . Robots Built . | . . . . . . . . . . . . . . . . . . . . . . . . . . . . . . . . . Authchips . | . . . . . . . . . . . . . . . . . . . . . . . . . . . . . . . . . Time . | . . . . . . . . . . . . . . . . . . . . . . . . . . . . . . . . . Total Robot Build Rating . | . . . . . . . . . . . . . . . . . . . . . . . . . . . . . . . . . Part Schematics Acquired 14 | . . . 12 . . . . . . . . . . . . . 2 . . . . . . . . . . . . . . . Parts Built 3 | . . . . . . . . . . . . . . . . . 3 . . . . . . . . . . . . . . . Authchips . | . . . . . . . . . . . . . . . . . . . . . . . . . . . . . . . . . Time 137 | . . . . . . . . . . . . . . . . . 137 . . . . . . . . . . . . . . . Total Part Build Rating 16 | . . . . . . . . . . . . . . . . . 16 . . . . . . . . . . . . . . . Part Studies Acquired 6 | . . . . . . . . . 1 . . . . . . . 3 . . . . . 2 . . . . . . . . . Parts Repaired . | . . . . . . . . . . . . . . . . . . . . . . . . . . . . . . . . . Time . | . . . . . . . . . . . . . . . . . . . . . . . . . . . . . . . . . Parts Recycled . | . . . . . . . . . . . . . . . . . . . . . . . . . . . . . . . . . Recycled Matter . | . . . . . . . . . . . . . . . . . . . . . . . . . . . . . . . . . Retrieved Matter . | . . . . . . . . . . . . . . . . . . . . . . . . . . . . . . . . . Retrieved Components 2 | . 2 . . . . . . . . . . . . . . . . . . . . . . . . . . . . . . . Parts Scanalyzed 2 | . . . 1 . . . . . . . . . . . . . 1 . . . . . . . . . . . . . . . Part Schematics Acquired 2 | . . . 1 . . . . . . . . . . . . . 1 . . . . . . . . . . . . . . . Parts Damaged . | . . . . . . . . . . . . . . . . . . . . . . . . . . . . . . . . . Bothacking | -11 -10 -10 -9 -9 -9 -8 -8 -8 -8 -8 -7 -7 -7 -7 -6 -6 -6 -6 -5 -5 -5 -5 -4 -4 -4 -4 -4 -3 -3 -2 -2 -1 ------------ Run | Yrd Mat Min Mat Min Exi Min Mat Gar Mat Gar Fac Gar Fac DSF Fac Was Fac Gar Fac Gar Fac Gar Fac Ext Cet Arc Hub Res Qua Res Gar Acc Used RIF Installer 7 | . . . . . . . . 2 . 1 . 1 . . . . . 1 . 1 . . . . . . . . . . 1 . Robot Detection 1 | . . . . . . . . . . . . . . . . . . . . . . . . . . . . . . . 1 . Watcher Feeds 1 | . . . . . . . . . . 1 . . . . . . . . . . . . . . . . . . . . . . Alert ID Control 1 | . . . . . . . . . . . . . . . . . . 1 . . . . . . . . . . . . . . Structural Interface 1 | . . . . . . . . . . . . . . . . . . . . 1 . . . . . . . . . . . . Program Shield 1 | . . . . . . . . 1 . . . . . . . . . . . . . . . . . . . . . . . . Autooverride 1 | . . . . . . . . . . . . 1 . . . . . . . . . . . . . . . . . . . . Robots Hacked 21 | . . . . . . . . 1 3 3 . 6 . . . . . . 1 . . . . 5 1 . . . . . . 1 Non-combat 2 | . . . . . . . . . 1 . . . . . . . . . 1 . . . . . . . . . . . . . Combat 19 | . . . . . . . . 1 2 3 . 6 . . . . . . . . . . . 5 1 . . . . . . 1 Autooverrided 9 | . . . . . . . . . . . . 5 . . . . . . . . . . . 2 1 . . . . . . 1 Robot Hacks Applied 15 | . . . . . . . . 1 6 3 . 1 . . . . . . 1 . . . . 3 . . . . . . . . parse_system 1 | . . . . . . . . . 1 . . . . . . . . . . . . . . . . . . . . . . . find_chute 1 | . . . . . . . . . . . . . . . . . . . 1 . . . . . . . . . . . . . purge_threat 2 | . . . . . . . . . 2 . . . . . . . . . . . . . . . . . . . . . . . block_reporting 1 | . . . . . . . . . 1 . . . . . . . . . . . . . . . . . . . . . . . summon_haulers 1 | . . . . . . . . . 1 . . . . . . . . . . . . . . . . . . . . . . . amplify_resonance 1 | . . . . . . . . . . . . . . . . . . . . . . . . 1 . . . . . . . . overwrite_iff 4 | . . . . . . . . . . 3 . 1 . . . . . . . . . . . . . . . . . . . . formatsys_high 4 | . . . . . . . . 1 1 . . . . . . . . . . . . . . 2 . . . . . . . . Relay Couplers Released 43 | . . . . . . . . 11 . 7 . 15 . . . . 1 4 . . . . . . . . . . . . 5 . Machine Destruction 43 | . . . . . . . . 11 . 7 . 15 . . . . 1 4 . . . . . . . . . . . . 5 . Attached 12 | . . . . . . . . 2 1 1 . 3 . . . . 2 1 . . . . . . . . . . . . 2 . Fabnet Peak Effective % . | . . . . . . . . . . . . . . . . . . . . . . . . . . . . . . . . . Robots Rewired 3 | . . . . . . . . . . . . . . . . . . . . . . . . 3 . . . . . . . . Allies Hacked 1 | . . . . . . . . . . . . . . . . . . . . . . . . . . . . . . . . 1 Hacks Repelled . | . . . . . . . . . . . . . . . . . . . . . . . . . . . . . . . . . Allies | -11 -10 -10 -9 -9 -9 -8 -8 -8 -8 -8 -7 -7 -7 -7 -6 -6 -6 -6 -5 -5 -5 -5 -4 -4 -4 -4 -4 -3 -3 -2 -2 -1 -------- Run | Yrd Mat Min Mat Min Exi Min Mat Gar Mat Gar Fac Gar Fac DSF Fac Was Fac Gar Fac Gar Fac Gar Fac Ext Cet Arc Hub Res Qua Res Gar Acc Total Allies 46 | . . 4 . . . . 1 2 1 3 . 6 . . 2 . . . . . . 2 . 15 6 . . 1 . 1 . 2 Largest Group 7 | . . 4 4 . . . 1 2 2 1 . 2 . . 1 . . . . . . 2 . 7 6 6 5 1 . 1 . 2 Highest-Rated Group 636 | . . 71 71 . . . 26 164 178 16 . 24 . . 26 . . . . . . 175 . 319 636 636 480 45 . 26 . 103 Highest-Rated Ally 159 | . . 31 31 . . . 26 149 149 16 . 16 . . 26 . . . . . . 95 . 159 159 156 96 45 . 26 . 58 Total Orders 4 | . . . . 1 . . . 1 . . . . . . . . . . . . . . . . . 2 . . . . . . STAY 1 | . . . . . . . . 1 . . . . . . . . . . . . . . . . . . . . . . . . ROAM 1 | . . . . . . . . . . . . . . . . . . . . . . . . . . 1 . . . . . . FOLLOW 1 | . . . . . . . . . . . . . . . . . . . . . . . . . . 1 . . . . . . EXPLORE 1 | . . . . 1 . . . . . . . . . . . . . . . . . . . . . . . . . . . . Ally Attacks 274 | . . 7 43 . . . . . 11 12 . 21 . . . . . . . . . 5 . 43 58 27 44 . . . . 3 Total Damage 7465 | . . 81 376 . . . . . 565 98 . 146 . . . . . . . . . 146 . 1495 1855 853 1739 . . . . 111 Kills 48 | . . 3 8 . . . . . 5 . . . . . . . . . . . . 3 . 6 9 4 10 . . . . . Allies Corrupted 2 | . . . . . . . . . . . . . . . . . . . . . . . . 2 . . . . . . . . Allies Melted 1 | . . . . . . . . . . . . . . . . . . . . . . . . 1 . . . . . . . . Intel | -11 -10 -10 -9 -9 -9 -8 -8 -8 -8 -8 -7 -7 -7 -7 -6 -6 -6 -6 -5 -5 -5 -5 -4 -4 -4 -4 -4 -3 -3 -2 -2 -1 ------- Run | Yrd Mat Min Mat Min Exi Min Mat Gar Mat Gar Fac Gar Fac DSF Fac Was Fac Gar Fac Gar Fac Gar Fac Ext Cet Arc Hub Res Qua Res Gar Acc Active Infowar (turns) 2302 | . 677 305 794 85 . . . . . . . . . . 156 25 260 . . . . . . . . . . . . . . . Optics 1747 | . 422 305 794 85 . . . . . . . . . . . 18 123 . . . . . . . . . . . . . . . Seismic 60 | . . . . . . . . . . . . . . . 60 . . . . . . . . . . . . . . . . . T.N.C. 441 | . . . . . . . . . . . . . . . 156 25 260 . . . . . . . . . . . . . . . Machine Analysis 255 | . 255 . . . . . . . . . . . . . . . . . . . . . . . . . . . . . . . Robot Analysis Total 3 | . 2 . 1 . . . . . . . . . . . . . . . . . . . . . . . . . . . . . Derelict Logs Recovered 3 | . . 1 . 2 . . . . . . . . . . . . . . . . . . . . . . . . . . . . Drone Launches 10 | . . . . 10 . . . . . . . . . . . . . . . . . . . . . . . . . . . . Drone Recoveries . | . . . . . . . . . . . . . . . . . . . . . . . . . . . . . . . . . Exploration | -11 -10 -10 -9 -9 -9 -8 -8 -8 -8 -8 -7 -7 -7 -7 -6 -6 -6 -6 -5 -5 -5 -5 -4 -4 -4 -4 -4 -3 -3 -2 -2 -1 ------------- Run | Yrd Mat Min Mat Min Exi Min Mat Gar Mat Gar Fac Gar Fac DSF Fac Was Fac Gar Fac Gar Fac Gar Fac Ext Cet Arc Hub Res Qua Res Gar Acc Turns Passed 8835 | 64 785 305 794 229 81 90 244 989 415 369 69 622 12 83 329 25 513 162 31 116 4 77 314 430 255 607 127 146 189 85 144 130 Spaces Moved 14271 | 48 923 530 1209 508 226 264 460 952 750 538 141 919 24 123 619 102 1156 300 130 230 22 200 584 609 287 189 343 256 582 281 218 548 Core 381 | 48 109 . . . . . . . . . . 36 24 74 . . . . . . . . . . . 90 . . . . . . Treads . | . . . . . . . . . . . . . . . . . . . . . . . . . . . . . . . . . Legs . | . . . . . . . . . . . . . . . . . . . . . . . . . . . . . . . . . Wheels . | . . . . . . . . . . . . . . . . . . . . . . . . . . . . . . . . . Hover . | . . . . . . . . . . . . . . . . . . . . . . . . . . . . . . . . . Flight 13890 | . 814 530 1209 508 226 264 460 952 750 538 141 883 . 49 619 102 1156 300 130 230 22 200 584 609 287 99 343 256 582 281 218 548 Fastest Speed 15 | 50 37 37 34 34 34 34 31 31 31 29 29 24 50 23 20 20 20 21 18 18 18 18 15 19 23 26 19 22 22 19 19 15 Average Speed 31 | 50 38 38 34 34 34 34 31 32 31 30 29 28 50 41 23 20 20 21 18 18 18 18 24 21 49 227 22 22 22 21 19 18 Slowest Speed 450 | 50 50 120 117 104 34 34 31 104 31 107 29 94 50 50 109 20 21 21 18 18 18 18 34 23 106 450 26 26 22 22 19 19 Overloaded Moves . | . . . . . . . . . . . . . . . . . . . . . . . . . . . . . . . . . Propulsion Burnouts . | . . . . . . . . . . . . . . . . . . . . . . . . . . . . . . . . . Robots Hopped 166 | . 14 8 18 5 . 3 15 . 7 4 2 11 . 4 6 3 9 . 2 2 . 8 11 26 . . 2 3 1 . . 2 Potential Cave-ins 11 | . . . . . . . . . . . . . . . . . . . . . . . . . . . . . . . 11 . Cave-ins Triggered . | . . . . . . . . . . . . . . . . . . . . . . . . . . . . . . . . . Exploration Rate (%) 46 | 3 97 88 69 92 60 73 49 73 51 66 6 78 1 79 16 74 28 41 5 32 1 33 21 73 56 81 51 12 63 12 29 23 Regions Visited 32 Branch Regions 9 Pre-discovered Areas 8 | . 2 . . 1 1 . . . . . . . . . . . 4 . . . . . . . . . . . . . . . Known Exits Taken 14 | . . 1 1 1 . 1 1 . 1 . 1 . 1 . . . 1 . 1 . 1 . . . . . 1 1 . 1 . . Unknown Exits Taken 8 | 1 1 . . . 1 . . . . . . . . . . . . . . . . . 1 1 1 1 . . 1 . . . Scrap Searched 5 | . . 1 . 3 . 1 . . . . . . . . . . . . . . . . . . . . . . . . . . Spaces Dug 68 | . . . 2 . . . 3 11 . 13 2 8 . . 1 . 10 . 1 3 . . 5 3 . 1 2 1 2 . . . Terrain Destroyed 117 | . . . 2 . . . 3 11 . 13 2 8 . . 1 . 26 9 1 3 . . 5 7 20 1 2 1 2 . . . Melee 68 | . . . 2 . . . 3 11 . 13 2 8 . . 1 . 10 . 1 3 . . 5 3 . 1 2 1 2 . . . Projectile . | . . . . . . . . . . . . . . . . . . . . . . . . . . . . . . . . . AOE 48 | . . . . . . . . . . . . . . . . . 16 9 . . . . . 3 20 . . . . . . . Terrain Rammed . | . . . . . . . . . . . . . . . . . . . . . . . . . . . . . . . . . Walls Destroyed . | . . . . . . . . . . . . . . . . . . . . . . . . . . . . . . . . . Machines Disabled . | . . . . . . . . . . . . . . . . . . . . . . . . . . . . . . . . . Actions | -11 -10 -10 -9 -9 -9 -8 -8 -8 -8 -8 -7 -7 -7 -7 -6 -6 -6 -6 -5 -5 -5 -5 -4 -4 -4 -4 -4 -3 -3 -2 -2 -1 --------- Run | Yrd Mat Min Mat Min Exi Min Mat Gar Mat Gar Fac Gar Fac DSF Fac Was Fac Gar Fac Gar Fac Gar Fac Ext Cet Arc Hub Res Qua Res Gar Acc Total 17394 | 65 1212 604 1391 543 229 260 523 1473 871 673 154 1199 23 149 762 102 1378 379 133 288 22 230 682 806 376 355 372 338 624 299 306 573 Wait 1896 | 1 122 52 45 16 . . 49 311 69 73 4 157 . 12 79 3 176 57 . 44 . 15 63 133 74 153 9 80 21 8 43 27 Move 13937 | 47 894 514 1173 497 225 257 431 951 737 530 136 899 23 114 607 96 1138 299 127 225 22 185 563 564 286 188 338 250 580 281 217 543 Hop 141 | . 14 7 17 5 . 3 13 . 6 3 2 8 . 4 6 2 9 . 1 2 . 6 9 18 . . 2 2 . . . 2 Pick Up 32 | 2 7 3 2 . . . 2 2 . . . 1 . 5 . . 2 . . . . 1 . . . 1 1 1 2 . . . Fast Attach 95 | 4 4 1 4 4 1 . 1 9 3 4 2 8 . 5 16 1 2 1 . . . . 6 2 2 3 4 . 2 4 1 1 Attach 26 | . 2 1 3 . . . 1 3 2 . . 2 . 1 1 . 1 . 2 . . . . 1 . . 1 1 3 1 . . Detach 14 | . 1 1 2 . 1 . . 1 2 . . 2 . . 1 . . . . . . . . 1 . . . . 1 1 . . Swap 148 | . 16 5 12 6 1 . 7 19 9 7 3 8 . . 7 . 13 2 1 . . 1 7 10 2 1 5 3 2 . 1 . Drop 107 | . 18 7 6 7 1 . 5 12 4 1 1 5 . 4 9 . 9 1 . . . 1 . 3 1 3 4 . 3 1 1 . Fire 391 | 11 79 13 90 6 . . 11 55 26 7 3 15 . . . . 3 6 1 4 . 1 8 33 11 . 5 . . . 3 . Melee 242 | . . . 2 2 . . 3 35 12 33 3 29 . . 21 . 25 5 1 6 . 1 26 10 . 6 3 1 10 3 5 . Ram 1 | . . . . . . . . . . . . . . . . . . . . . . . . 1 . . . . . . . . Kick . | . . . . . . . . . . . . . . . . . . . . . . . . . . . . . . . . . Crush . | . . . . . . . . . . . . . . . . . . . . . . . . . . . . . . . . . Escape Stasis 266 | . . . . . . . . 74 . 15 . 65 . . 15 . . 8 . 7 . 19 . 28 . . . . . . 35 . Rewire 4 | . . . . . . . . 1 1 . . . . . . . . . . . . . . 2 . . . . . . . . Trap 94 | . 55 . 35 . . . . . . . . . . 4 . . . . . . . . . . . . . . . . . . Miscellaneous . | . . . . . . . . . . . . . . . . . . . . . . . . . . . . . . . . . Route ------- -11/Scrapyard -10/Materials (discovered 5 exits: *Mat x3 / [*Min] / Sub) -10/Mines (discovered 3 exits: *Mat x2 / Sub) -9/Materials (discovered 5 exits: *Mat x3 / *Min x2) -9/Mines (discovered 3 exits: *Mat x2 / *Exi) -9/Exiles -8/Mines -8/Materials (discovered 3 exits: *Fac x2 / Gar) -8/Garrison (discovered 3 exits: *Mat x3) -8/Materials (discovered 2 exits: *Fac / Gar) -8/Garrison (discovered 3 exits: *Fac x3) -7/Factory -7/Garrison (discovered 3 exits: *Fac x3) -7/Factory -7/DSF -6/Factory -6/Waste -6/Factory (discovered 6 exits: Fac x3 / *Low x2 / Gar) -6/Garrison -5/Factory -5/Garrison -5/Factory -5/Garrison -4/Factory -4/Extension (discovered 2 exits: *Res / *Cet) -4/Cetus (discovered 2 exits: *Res / [*Arc]) -4/Archives (discovered 3 exits: *Res / *Hub x2) -4/Hub_04(d) -3/Research -3/Quarantine -2/Research (discovered 3 exits: Tes x2 / Gar) -2/Garrison -1/Access To Epsilon Eridani History --------- Turn | Location | Event 11 | -11/Scrapyard | Discovered new exit (range 16) 65 | -11/Scrapyard | Entered Materials 72 | -10/Materials | Discovered new exit (range 16) 320 | -10/Materials | Discovered new exit (range 16) 401 | -10/Materials | Discovered new exit (range 5) 451 | -10/Materials | Discovered new exit (range 14) 566 | -10/Materials | Learned location of 2 exits from Subcaves 615 | -10/Materials | Learned location of 2 exits from Mines 689 | -10/Materials | Learned Storage emergency access door positions 713 | -10/Materials | Learned location of Mines (-8) 728 | -10/Materials | Learned Storage emergency access door positions 733 | -10/Materials | Identified exit to Subcaves 746 | -10/Materials | Loaded intel: 10 trap records 850 | -10/Materials | Entered Mines 851 | -10/Mines | Identified exit to Materials 862 | -10/Mines | Build established: Mutant 1016 | -10/Mines | Learned Materials trap positions 1023 | -10/Mines | Received a Mining Laser from a helpful Derelict 1070 | -10/Mines | Assisted by bots powering up and referring to "LRC-V3" 1093 | -10/Mines | A weapon hastily lodged in a ceiling crevice suddenly fell to the ground 1155 | -10/Mines | Entered Materials 1155 | -9/Materials | Accompanied by 4 allies 1155 | -9/Materials | Evolved 2 slots: Propulsion x1, Weapon x1 1156 | -9/Materials | Loaded intel: 27 trap records 1569 | -9/Materials | Central database locked down 1573 | -9/Materials | Discovered new exit (range 11) 1711 | -9/Materials | Learned Materials trap positions 1764 | -9/Materials | Identified exit to Mines 1764 | -9/Materials | Identified exit to Materials 1789 | -9/Materials | Build established: Scavenger-Tank 1837 | -9/Materials | Learned Materials trap positions 1858 | -9/Materials | Learned Storage trap positions 1927 | -9/Materials | Learned 4 Recycling zone layouts 1949 | -9/Materials | Entered Mines 1950 | -9/Mines | Identified exit to Exiles 1966 | -9/Mines | Deemed a non-threat by the Exiles lab entrance 1996 | -9/Mines | Learned 4 Materials zone layouts 2002 | -9/Mines | Discovered exit to Materials (range 8) 2009 | -9/Mines | Learned location of Storage (-7) 2031 | -9/Mines | Found the Drone Emporium 2035 | -9/Mines | Found Prototype Device 2035 | -9/Mines | Identified Decoy Drone Bay 2084 | -9/Mines | Joined a pair of Derelicts in attacking an 0b10 outpost 2125 | -9/Mines | Lost 11 allies 2130 | -9/Mines | Found a damaged Exp. Sensor Array with a note attached 2178 | -9/Mines | Entered Exiles 2187 | -9/Exiles | Met 8R-AWN 2193 | -9/Exiles | Met EX-HEX 2202 | -9/Exiles | Met EX-BIN 2207 | -9/Exiles | Aligned with FarCom system 2207 | -9/Exiles | Given EX-Vault access code 2215 | -9/Exiles | Opened EX-Vault 2217 | -9/Exiles | Found Latent Energy Streamer 2228 | -9/Exiles | Warned to stay clear of 0b10 Research branches 2238 | -9/Exiles | Met EX-DEC 2240 | -9/Exiles | Learned location of Zion (-6) 2256 | -9/Exiles | Discovered new exit (range 10) 2259 | -9/Exiles | Left Exiles lab with Latent Energy Streamer 2259 | -9/Exiles | Entered Mines 2346 | -8/Mines | Discovered exit to Materials (range 9) 2349 | -8/Mines | Entered Materials 2349 | -8/Materials | Evolved 2 slots: Propulsion x1, Utility x1 2351 | -8/Materials | Loaded intel: 13 trap records 2432 | -8/Materials | Discovered new exit (range 3) 2503 | -8/Materials | Discovered new exit (range 9) 2580 | -8/Materials | Identified exit to Garrison 2593 | -8/Materials | Entered Garrison 2593 | -8/Garrison | Accompanied by 1 ally 2637 | -8/Garrison | Build established: Sprinter 2651 | -8/Garrison | P-60 Hacker assimilated allied Administrator 3a 2692 | -8/Garrison | Destroyed 8 combat bots 2703 | -8/Garrison | Triggered checkpoint 2775 | -8/Garrison | Garrison Relay disabled 2799 | -8/Garrison | Triggered checkpoint 2938 | -8/Garrison | Triggered checkpoint 2949 | -8/Garrison | Discovered new exit (range 12) 2995 | -8/Garrison | Triggered checkpoint 2998 | -8/Garrison | Garrison Relay disabled 3057 | -8/Garrison | Installed Relay Interface Framework 3059 | -8/Garrison | Discovered new exit (range 12) 3107 | -8/Garrison | System corruption reached 10% 3187 | -8/Garrison | Lost 4 parts (1n3w) 3352 | -8/Garrison | Expanded RIF knowledge: Program Shield 3357 | -8/Garrison | Garrison Relay disabled 3362 | -8/Garrison | Discovered new exit (range 43) 3362 | -8/Garrison | Discovered new exit (range 18) 3362 | -8/Garrison | Discovered new exit (range 58) 3383 | -8/Garrison | Triggered checkpoint 3485 | -8/Garrison | Rescued HV-R5K 3582 | -8/Garrison | Entered Materials 3582 | -8/Materials | Accompanied by 2 allies (HV-R5K) 3583 | -8/Materials | Loaded intel: 14 trap records 3638 | -8/Materials | Central database locked down 3857 | -8/Materials | Discovered new exit (range 14) 3972 | -8/Materials | Garrison activated, responded to threat 3997 | -8/Materials | Identified exit to Garrison 3997 | -8/Materials | Entered Garrison 4003 | -8/Garrison | Triggered checkpoint 4017 | -8/Garrison | Garrison Relay disabled 4102 | -8/Garrison | Discovered new exit (range 8) 4102 | -8/Garrison | Discovered new exit (range 60) 4102 | -8/Garrison | Discovered new exit (range 79) 4135 | -8/Garrison | Triggered checkpoint 4178 | -8/Garrison | Garrison Relay disabled 4278 | -8/Garrison | Core integrity fell below 50% 4356 | -8/Garrison | Expanded RIF knowledge: Watcher Feeds 4366 | -8/Garrison | Entered Factory 4366 | -7/Factory | Evolved 2 slots: Propulsion x1, Utility x1 4432 | -7/Factory | Identified exit to Garrison 4435 | -7/Factory | Entered Garrison 4446 | -7/Garrison | Expanded RIF knowledge: Autooverride 4698 | -7/Garrison | Garrison Relay disabled 4706 | -7/Garrison | Garrison Relay disabled 4731 | -7/Garrison | Triggered checkpoint 4767 | -7/Garrison | Triggered checkpoint 4779 | -7/Garrison | Triggered checkpoint 4791 | -7/Garrison | Discovered new exit (range 12) 4813 | -7/Garrison | Lost 5 allies 4839 | -7/Garrison | Spotted B-75 Beast 4839 | -7/Garrison | Spotted B-75 Beast 4853 | -7/Garrison | Triggered checkpoint 4860 | -7/Garrison | Lost 3 parts (1n1u1w) 4905 | -7/Garrison | Discovered new exit (range 10) 4923 | -7/Garrison | Triggered checkpoint 4925 | -7/Garrison | Garrison Relay disabled 4994 | -7/Garrison | Lost 4 parts (1p2n1w) 5030 | -7/Garrison | Core integrity fell below 50% 5052 | -7/Garrison | Discovered new exit (range 11) 5057 | -7/Garrison | Entered Factory 5069 | -7/Factory | Identified exit to DSF 5069 | -7/Factory | Entered DSF 5087 | -7/DSF | Lost 8 parts (3n4u1w) 5092 | -7/DSF | Additional patrols routed to DSF 5099 | -7/DSF | Core integrity fell below 20% 5148 | -7/DSF | Discovered new exit (range 11) 5152 | -7/DSF | Entered Factory 5152 | -6/Factory | Evolved 2 slots: Power x1, Propulsion x1 5481 | -6/Factory | Manually triggered Chute Trap 5481 | -6/Factory | Sucked down chute 5481 | -6/Factory | Entered Waste 5484 | -6/Waste | Spotted C-40 Crusher 5485 | -6/Waste | Spotted C-40 Crusher 5488 | -6/Waste | Spotted C-40 Crusher 5494 | -6/Waste | Spotted C-40 Crusher 5496 | -6/Waste | EMP discharged 5496 | -6/Waste | Discovered new exit (range 12) 5496 | -6/Waste | Spotted C-40 Crusher 5506 | -6/Waste | 1 allies followed down the chute 5506 | -6/Waste | Entered Factory 5567 | -6/Factory | Discovered new exit (range 20) 5605 | -6/Factory | Fabricated Nuclear Pulse Thruster? 5775 | -6/Factory | Central database locked down 5834 | -6/Factory | Loaded intel: 24 terminal locations 5864 | -6/Factory | Discovered new exit (range 15) 5866 | -6/Factory | Identified exit to Lower Caves 5878 | -6/Factory | Loaded intel: 106 trap records 5914 | -6/Factory | Learned location of Proximity Caves (-6) 5956 | -6/Factory | Learned location of Lower Caves (-6) 5960 | -6/Factory | Fabricated Exp. Heat Sink (x1) 5970 | -6/Factory | Identified exit to Factory 5983 | -6/Factory | Build established: Hacker-Sprinter 5986 | -6/Factory | Learned location of Warlord (-5) 5988 | -6/Factory | System corruption reached 10% 6012 | -6/Factory | Learned 2 Hub_04(d) zone layouts 6018 | -6/Factory | Spotted B-75 Beast 6019 | -6/Factory | Identified exit to Garrison 6019 | -6/Factory | Entered Garrison 6067 | -6/Garrison | Garrison Relay disabled 6114 | -6/Garrison | Discovered exit to Factory (range 12) 6147 | -6/Garrison | Expanded RIF knowledge: Alert ID Control 6181 | -6/Garrison | Entered Factory 6181 | -5/Factory | Evolved 2 slots: Propulsion x1, Utility x1 6212 | -5/Factory | Identified exit to Garrison 6212 | -5/Factory | Entered Garrison 6232 | -5/Garrison | Triggered checkpoint 6300 | -5/Garrison | Spotted B-75 Beast 6320 | -5/Garrison | Expanded RIF knowledge: Structural Interface 6326 | -5/Garrison | Discovered new exit (range 10) 6328 | -5/Garrison | Entered Factory 6332 | -5/Factory | Identified exit to Garrison 6332 | -5/Factory | Entered Garrison 6341 | -5/Garrison | Found embedded Infiltrators 6344 | -5/Garrison | Triggered checkpoint 6387 | -5/Garrison | Spotted B-75 Beast 6388 | -5/Garrison | Triggered checkpoint 6400 | -5/Garrison | Triggered checkpoint 6401 | -5/Garrison | Discovered new exit (range 13) 6409 | -5/Garrison | Entered Factory 6409 | -4/Factory | Evolved 2 slots: Propulsion x1, Utility x1 6495 | -4/Factory | Lost 3 parts (1p1n1u) 6655 | -4/Factory | Spotted B-86 Titan 6722 | -4/Factory | Discovered new exit (range 9) 6723 | -4/Factory | Entered Extension 6752 | -4/Extension | Rescued a captive Derelict 6762 | -4/Extension | Rescued a captive Derelict 6888 | -4/Extension | Rescued a captive Derelict 6927 | -4/Extension | Spotted B-86 Titan 6956 | -4/Extension | Spotted B-86 Titan 6985 | -4/Extension | Watched by a mysterious "MATRIX" hacker. 7014 | -4/Extension | Rescued a captive Derelict 7015 | -4/Extension | Rescued a captive Derelict 7045 | -4/Extension | Rescued A7 7093 | -4/Extension | Rescued a captive Derelict 7101 | -4/Extension | Rescued a captive Derelict 7103 | -4/Extension | Destroyed 8 combat bots 7107 | -4/Extension | Discovered new exit (range 10) 7108 | -4/Extension | Discovered new exit (range 6) 7153 | -4/Extension | Entered Cetus 7153 | -4/Cetus | Accompanied by 3 allies (A7) 7158 | -4/Cetus | Acquired a Cetus Manufacturing Module code from A7 7158 | -4/Cetus | Spotted Cetus Guard 7159 | -4/Cetus | Spotted Cetus Guard 7167 | -4/Cetus | Spotted Cetus Guard 7167 | -4/Cetus | Spotted Cetus Guard 7171 | -4/Cetus | Allies destroyed Cetus Guard 7180 | -4/Cetus | Destroyed Cetus Guard 7183 | -4/Cetus | Destroyed Cetus Guard 7208 | -4/Cetus | Started Cetus Manufacturing Module 7233 | -4/Cetus | Manufactured an Enhanced Grunt 7251 | -4/Cetus | Discovered new exit (range 16) 7258 | -4/Cetus | Manufactured an Enhanced Grunt 7283 | -4/Cetus | Manufactured an Enhanced Grunt 7308 | -4/Cetus | Manufactured an Enhanced Grunt 7333 | -4/Cetus | Manufactured an Enhanced Grunt 7360 | -4/Cetus | Discovered new exit (range 16) 7365 | -4/Cetus | Met Revision 17 7408 | -4/Cetus | Entered Archives 7408 | -4/Archives | Accompanied by 6 allies (A7) 7443 | -4/Archives | Discovered new exit (range 15) 7579 | -4/Archives | Discovered new exit (range 15) 7582 | -4/Archives | Discovered new exit (range 15) 7882 | -4/Archives | Build established: Hacker-Mutant 8015 | -4/Archives | Entered Hub_04(d) 8015 | -4/Hub_04(d) | Accompanied by 5 allies 8016 | -4/Hub_04(d) | Identified exit to Research 8085 | -4/Hub_04(d) | Network Hub disabled 8116 | -4/Hub_04(d) | Found Prototype Hackware 8116 | -4/Hub_04(d) | Identified Exp. Hacking Suite 8134 | -4/Hub_04(d) | Spotted Lightning 8134 | -4/Hub_04(d) | Spotted Lightning 8134 | -4/Hub_04(d) | Spotted Lightning 8139 | -4/Hub_04(d) | Network Hub disabled 8139 | -4/Hub_04(d) | Spotted Lightning 8142 | -4/Hub_04(d) | Entered Research 8142 | -3/Research | Evolved 2 slots: Propulsion x2 8172 | -3/Research | Lost 4 parts (2n2w) 8199 | -3/Research | Spotted B-86 Titan 8286 | -3/Research | Discovered new exit (range 12) 8286 | -3/Research | Spotted B-90 Cyclops 8288 | -3/Research | Identified exit to Quarantine 8288 | -3/Research | Entered Quarantine 8289 | -3/Quarantine | Maximum security lockdown engaged 8290 | -3/Quarantine | Build established: Hacker-Sprinter 8303 | -3/Quarantine | Found Alien Reactor 8312 | -3/Quarantine | Cryocooling Duct disabled 8315 | -3/Quarantine | Cryocooling Duct disabled 8327 | -3/Quarantine | Ambient heat levels rising (+20) 8330 | -3/Quarantine | Ambient heat levels rising (+20) 8356 | -3/Quarantine | Found Alien Energy Cannon 8356 | -3/Quarantine | Identified Core Cannon 8391 | -3/Quarantine | Found Alien Slashing Weapon 8391 | -3/Quarantine | Identified Sigix Broadsword 8393 | -3/Quarantine | Identified Matter Drive 8398 | -3/Quarantine | Met incapacitated Sigix Warrior 8398 | -3/Quarantine | Lockdown squad dispatched 8418 | -3/Quarantine | Cryocooling Duct disabled 8426 | -3/Quarantine | Found Alien Artifact 8433 | -3/Quarantine | Ambient heat levels rising (+20) 8473 | -3/Quarantine | Discovered new exit (range 15) 8475 | -3/Quarantine | Spotted Executioner 8477 | -3/Quarantine | Entered Research 8477 | -2/Research | Evolved 2 slots: Power x1, Utility x1 8492 | -2/Research | Found Prototype Hackware 8492 | -2/Research | Identified Exp. System Shield 8517 | -2/Research | Identified exit to Testing 8536 | -2/Research | Spotted B-90 Cyclops 8562 | -2/Research | Identified exit to Garrison 8562 | -2/Research | Entered Garrison 8598 | -2/Garrison | Triggered checkpoint 8619 | -2/Garrison | Garrison Relay disabled 8690 | -2/Garrison | Discovered new exit (range 15) 8701 | -2/Garrison | Expanded RIF knowledge: Robot Detection 8706 | -2/Garrison | Entered Access 8706 | -1/Access | Evolved 2 slots: Utility x2 8749 | -1/Access | Identified exit to Surface 8781 | -1/Access | Spotted B-99 Colossus 8836 | *** | Escaped! Last Messages --------------- lost. 08766_ >> Watcher Feeds: Established visual feed link with W-44 Eye. 08774_ Director 10a reveals location of Alarm Trap. 08778_ >> Watcher Feeds: Feed link from W-44 Eye lost. 08794_ RIF reveals location of hidden door. 08814_ >> Watcher Feeds: Established visual feed link with W-44 Eye. 08817_ >> Watcher Feeds: Feed link from W-44 Eye lost. 08822_ Acquired Prototype Flight Unit. 08822_ Identified Imp. Diametric Drive. 08827_ >> Watcher Feeds: Established visual feed link with W-44 Eye. 08834_ Connecting with Terminal... >>Open(Door) Sealed Barrier opened. 08835_ The Access Shell folds into the floor. Map ----- +----------------------------------------------------+ | ?????????????????????????????????????????????????? | | ?????????????????????????????????????????????????? | | ?????????????????????????????????????????????????? | | ?????????????????????????????????????????????????? | | ?????????????????????????????????????????????????? | | ?????????????????????????????????????????????????? | | ??????????#####??????????????????????????????????? | | ?????????? #??????????????????????????????????? | | ?????????? ??????????????????????????????????? | | ?????????? ???????????????????????????????????? | | ?????????? ???????????????????????????????????? | | ??????????# #????????????????????????????????#### | | ??????????# #???????????????????????????????##""# | | ??????????# k#???????????????????????????????#" | | ??????????#w #???????????????????????????????## | | ??????????# #????????????????????????????????# | | ??????????# #???????????????????????????????## | | ??????????# #???????????????????????????????#" | | ??????????# #?????###???????????????????????## | | ??????????# ####### ##########???????????????# | | ??????????# A"""T""" "???????????????# | | ??????????# """ """ "????BB?????????# | | ??????????# "????BB ######### | | ??????????# "????? | | ??????????# "" "????? | | ??????????# @" "????? | | ??????????# "????? | | ??????????# "????BB ####+#### | | ??????????# "????BB????# | | ??????????# "??????????# | | ??????????# ####### ##########??????????# | | ??????????# #?????###??????????????????## | | ###########R #??????????????????????????#" * | | # #ww########???????????????????## | | # # ; ! #????????????????????##+###### | | # " + # #????????????????????## #"# | | # """ # # #????????????????????#" " | | # """ # w# #????????????????????##"#"# | | + " # # #???##########????????##### | | # # # #?? #????????????# | | # ; # #?? #????????????# | | ###+####### # #? #????????????#### | | ??????????# u/ #? #???????????????# | | ??????????# #####"+# #???????????????? | | ??????????# # #???????????????# | | ??????????# + #???????????????# | | ??????????######## # #???????????????# | | ?????????????????# # #???????????????# | | ?????????????????# # #???????????????# | | ?????????????????# " #???????????????# | +----------------------------------------------------+ Best States ------------- Heat Dissipation 104 Energy Generation 44 Energy Capacity 220 Matter Stores 300 Matter Capacity 300 Sight Range 23 Terrain Scan Density 10 Base Temperature (-) 200 Armor Coverage 225 Core Shielding 30 Propulsion Shielding 66 Evasion (%) 67 Targeting Accuracy 12 Recoil Reduction 2 Offensive Hacking 42 Defensive Hacking 16 Relay Coupler Types 3 Relay Coupler Value 75 Trap Extractor Capacity 4 Item Schematics ----------------- Beam Cannon | -9/Materials | Extracted Salvage Targeting Computer | -9/Materials | Extracted VTOL Module | -9/Materials | Extracted Imp. Assault Rifle | -9/Materials | Extracted Hrd. Light Armor Plating | -9/Materials | Scanalyzed Sml. Storage Unit | -9/Materials | Extracted Imp. Treads | -9/Materials | Extracted Propulsion Shielding | -9/Materials | Extracted Field Recycling Unit | -9/Materials | Extracted Hcp. Storage Unit | -9/Materials | Extracted Med. Matter Pod | -9/Materials | Extracted Welding Torch | -9/Materials | Extracted Hyp. Coil Gun | -6/Factory | Scanalyzed Exp. Heat Sink | -6/Factory | Hacked Robot Schematics ------------------ None Fabricated ------------ Nuclear Pulse Thruster | x2 | -6/Factory | Preloaded Exp. Heat Sink | x1 | -6/Factory Repaired ---------- Nothing Studied --------- Flight Unit | -8/Materials | Hacked Cesium-ion Thruster | -6/Factory | Hacked Remote Datajack | -6/Factory | Hacked Nuclear Pulse Thruster | -6/Factory | Hacked Lgt. Ion Engine | -4/Factory | Hacked Hyp. Coil Gun | -4/Factory | Hacked Alien Tech Used ----------------- Core Cannon Sigix Broadsword Matter Drive Achievements -------------- Blue Mage Challenges ------------ None Game ------ Seed ClaymoresAngularShotgun Manual? 0 Play Time 02:37:00 Cumulative 311.8 hours Start 2026.04.03 @ 16:26:13 End 2026.04.04 @ 13:56:22 Sessions 3 Manual Loads 0 Difficulty Rogue Special Mode None Game No. 153 Rogue 153 Adventurer 0 Explorer 0 Win Type 0 Total 20 Types 8/0/5/1/4/1/0/0/0/1 Lore% 87 Gallery% 75 Achievement% 87 Wizard Run 0 Options --------- Layout 1 ASCII 0 Keyboard 0 Movement Numpad Keybinds 0 Fullscreen 1 Font 24/Smallcaps Map View 50x35 Zoom Use 0% Tactical HUD 1 Map Filters NONE Filters NONE Steam 1 RUN: 00cb3f30-7643-47f8-802d-ad773d95a30f